Workbook

Sheet Feuil1
A10: Quadrigramme | B10: Catégorie | C10: Projet | D10: Sous-Projet | E10: Avenant | F10: Phase | G10: Activité | H10: Role | I10: Commentaire | J10: TOTAL MOIS | K10: 2016-10-01 | L10: 2016-10-02 | M10: 2016-10-03 | N10: 2016-10-04 | O10: 2016-10-05 | P10: 2016-10-06 | Q10: 2016-10-07 | R10: 2016-10-08 | S10: 2016-10-09 | T10: 2016-10-10 | U10: 2016-10-11 | V10: 2016-10-12 | W10: 2016-10-13 | X10: 2016-10-14 | Y10: 2016-10-15 | Z10: 2016-10-16 | AA10: 2016-10-17 | AB10: 2016-10-18 | AC10: 2016-10-19 | AD10: 2016-10-20 | AE10: 2016-10-21 | AF10: 2016-10-22 | AG10: 2016-10-23 | AH10: 2016-10-24 | AI10: 2016-10-25 | AJ10: 2016-10-26 | AK10: 2016-10-27 | AL10: 2016-10-28 | AM10: 2016-10-29 | AN10: 2016-10-30 | AO10: 2016-10-31 | AP10: Domaine | AQ10: SUPOC | AR10: PROJET
A11: AMER | B11: E-Transverse | C11: TV-PSI - Perturbations SI | D11: TV-PSI-001 - Perturbations liées au SI AGORA | E11: TV-PSI-001-AV-001 - Problèmes techniques | F11: 03 - Réalisation | G11: Développements et tests unitaires | H11: AP - Analyste Programmeur | I11: Modifications et tests {MIR Lot 2} (tout fonctionne très lentement) [SUPOC-102277] | J11: 0.76 | T11: 0.13 | U11: 0.38 | X11: 0.25 | AP11: PF | AQ11: SUPOC-102277 | AR11: MIR Lot 2
A12: AMER | B12: E-Transverse | C12: TV-PSI - Perturbations SI | D12: TV-PSI-001 - Perturbations liées au SI AGORA | E12: TV-PSI-001-AV-001 - Problèmes techniques | F12: 03 - Réalisation | G12: Développements et tests unitaires | H12: AP - Analyste Programmeur | I12: Modifications et tests {MIR Lot 2} (tout fonctionne très lentement) [SUPOC-103679] | J12: 0.13 | AA12: 0.13 | AP12: PF | AQ12: SUPOC-103679 | AR12: MIR Lot 2
A13: AMER | B13: E-Transverse | C13: TV-PSI - Perturbations SI | D13: TV-PSI-001 - Perturbations liées au SI AGORA | E13: TV-PSI-001-AV-001 - Problèmes techniques | F13: 03 - Réalisation | G13: Développements et tests unitaires | H13: AP - Analyste Programmeur | I13: Modifications et tests {MIR Lot 3} (indispo de la DB essai 77 pour faire tests [SUPOC-105792] | J13: 0.59 | AI13: 0.44 | AJ13: 0.15 | AP13: PF | AQ13: SUPOC-105792 | AR13: MIR Lot 3
A14: CGAL | B14: E-Transverse | C14: TV-PSI - Perturbations SI | D14: TV-PSI-001 - Perturbations liées au SI AGORA | E14: TV-PSI-001-AV-001 - Problèmes techniques | F14: 09 - N/A | G14: N/A | H14: A - Analyste | I14: [SUPOC-102277] {projet exemple} | J14: 0 | U14: 0 | AP14: Autre | AQ14: SUPOC-102277 | AR14: projet exemple
A15: CMOR | B15: E-Transverse | C15: TV-PSI - Perturbations SI | D15: TV-PSI-001 - Perturbations liées au SI AGORA | E15: TV-PSI-001-AV-001 - Problèmes techniques | F15: 09 - N/A | G15: N/A | H15: A - Analyste | I15: [SUPOC-102277] {projet exemple} | J15: 2.25 | U15: 0.25 | X15: 0.25 | AA15: 1 | AB15: 0.25 | AC15: 0.5 | AP15: PF | AQ15: SUPOC-102277 | AR15: projet exemple
A16: CPES | B16: E-Transverse | C16: TV-PSI - Perturbations SI | D16: TV-PSI-001 - Perturbations liées au SI AGORA | E16: TV-PSI-001-AV-001 - Problèmes techniques | F16: 09 - N/A | G16: N/A | H16: AP - Analyste Programmeur | I16: PROJET {CDRCO LOT BALAI} [SUPOC-102277] : ralentissements pendant la qualification CDRCO TP, Citrix inutilisable le matin (plusieurs tentatives de connection,etc…) lenteur des mef. LA ME a prévenu qu'on aurait des soucis avec Citrix (cf Zben) | J16: 0.75 | T16: 0.25 | U16: 0.5 | AP16: PV | AQ16: SUPOC-102277 | AR16: CDRCO LOT BALAI
A17: DLEC | B17: E-Transverse | C17: TV-PSI - Perturbations SI | D17: TV-PSI-001 - Perturbations liées au SI AGORA | E17: TV-PSI-001-AV-001 - Problèmes techniques | F17: 03 - Réalisation | G17: Développements et tests unitaires | H17: A - Analyste | I17: [SUPOC-102277] problème lenteur outils de développement : leteur dtbrlg, lncjcl,,, pour tests P2600 et P2610, projet {Taux demat} | J17: 0.75 | U17: 0.5 | V17: 0.25 | AP17: PF | AQ17: SUPOC-102277 | AR17: Taux demat
A18: DLEC | B18: E-Transverse | C18: TV-PSI - Perturbations SI | D18: TV-PSI-001 - Perturbations liées au SI AGORA | E18: TV-PSI-001-AV-001 - Problèmes techniques | F18: 03 - Réalisation | G18: Développements et tests unitaires | H18: A - Analyste | I18: SUPOC-103679 problème d'accès aux données BDD de l'essai 77. Blocage des TO chaine P2610 (projet Taux demat) | J18: 1 | X18: 0.5 | AA18: 0.5 | AP18: PF | AQ18: S
A19: ECAL | B19: E-Transverse | C19: TV-PSI - Perturbations SI | D19: TV-PSI-001 - Perturbations liées au SI AGORA | E19: TV-PSI-001-AV-001 - Problèmes techniques | F19: 03 - Réalisation | G19: Développements et tests unitaires | H19: AP - Analyste Programmeur | I19: [SUPOC-102277] {projet exemple} | J19: 0.75 | U19: 0.25 | X19: 0.25 | AE19: 0.25 | AP19: PV | AQ19: SUPOC-102277 | AR19: projet exemple
A20: FFIA | B20: E-Transverse | C20: TV-PSI - Perturbations SI | D20: TV-PSI-001 - Perturbations liées au SI AGORA | E20: TV-PSI-001-AV-001 - Problèmes techniques | F20: 09 - N/A | G20: N/A | H20: A - Analyste | I20: [SUPOC-101547] {projet exemple} (bdd cmcd bloquée) | J20: 0 | AP20: EMA | AQ20: SUPOC-101547 | AR20: projet exemple
A21: FFIA | B21: E-Transverse | C21: TV-PSI - Perturbations SI | D21: TV-PSI-001 - Perturbations liées au SI AGORA | E21: TV-PSI-001-AV-001 - Problèmes techniques | F21: 09 - N/A | G21: N/A | H21: A - Analyste | I21: Problèm lenteur eclipse [SUPOC-102277] {projet exemple} | J21: 0 | AP21: EMA | AQ21: SUPOC-102277 | AR21: projet exemple
A22: FFRA | B22: E-Transverse | C22: TV-PSI - Perturbations SI | D22: TV-PSI-001 - Perturbations liées au SI AGORA | E22: TV-PSI-001-AV-001 - Problèmes techniques | F22: 09 - N/A | G22: N/A | H22: AP - Analyste Programmeur | I22: {SUPOC-102277] - {LURA} (hrdgesdem, hrdecgrepdem) | J22: 0.4 | U22: 0.4 | AP22: RGCU | AQ22: {SUPOC-102277 | AR22: SUPOC-102277] - {LURA
A23: GSCH | B23: E-Transverse | C23: TV-PSI - Perturbations SI | D23: TV-PSI-001 - Perturbations liées au SI AGORA | E23: TV-PSI-001-AV-001 - Problèmes techniques | F23: 03 - Réalisation | G23: Développements et tests unitaires | H23: A - Analyste | I23: Mutation sortie - Patrimoine {JCSSUDA-566} - [SUPOC-102277] | J23: 0.25 | T23: 0.25 | AP23: PF | AQ23: SUPOC-102277 | AR23: JCSSUDA-566
A24: GSEN | B24: E-Transverse | C24: TV-PSI - Perturbations SI | D24: TV-PSI-001 - Perturbations liées au SI AGORA | E24: TV-PSI-001-AV-001 - Problèmes techniques | F24: 09 - N/A | G24: N/A | H24: A - Analyste | I24: [SUPOC-102277] (PC-PF maintenance - Analyse {TANDEM}) | J24: 0.75 | T24: 0.5 | U24: 0.25 | AP24: PF | AQ24: SUPOC-102277 | AR24: TANDEM
A25: GSEN | B25: E-Transverse | C25: TV-PSI - Perturbations SI | D25: TV-PSI-001 - Perturbations liées au SI AGORA | E25: TV-PSI-001-AV-001 - Problèmes techniques | F25: 09 - N/A | G25: N/A | H25: A - Analyste | I25: [SUPOC-103679] (PC-PF maintenance - Analyse {TANDEM}) | J25: 1 | X25: 0.25 | AA25: 0.75 | AP25: PF | AQ25: SUPOC-103679 | AR25: TANDEM
A26: HMAR | B26: E-Transverse | C26: TV-PSI - Perturbations SI | D26: TV-PSI-001 - Perturbations liées au SI AGORA | E26: TV-PSI-001-AV-001 - Problèmes techniques | F26: 03 - Réalisation | G26: Développements et tests unitaires | H26: AP - Analyste Programmeur | I26: [SUPOC-102277] Modification et test {MIR LOT2} (il fonctionne très lentement) | J26: 0.13 | X26: 0.13 | AP26: PF | AQ26: SUPOC-102277 | AR26: MIR LOT2
A27: ISOR | B27: E-Transverse | C27: TV-PSI - Perturbations SI | D27: TV-PSI-001 - Perturbations liées au SI AGORA | E27: TV-PSI-001-AV-001 - Problèmes techniques | F27: 09 - N/A | G27: N/A | H27: AP - Analyste Programmeur | I27: [SUPOC-105792] / PF-PR001 - {MIR} | J27: 0.25 | AI27: 0.25 | AP27: EMA | AQ27: SUPOC-105792 | AR27: MIR
A28: JDUQ | B28: E-Transverse | C28: TV-PSI - Perturbations SI | D28: TV-PSI-001 - Perturbations liées au SI AGORA | E28: TV-PSI-001-AV-001 - Problèmes techniques | F28: 03 - Réalisation | G28: Développements et tests unitaires | H28: AP - Analyste Programmeur | I28: [SUPOC-102277] (project impactée {MIR LOT2 et MIR LOT3}) Tout fonctionne très lentement | J28: 0.375 | U28: 0.125 | W28: 0.125 | AA28: 0.125 | AP28: PF | AQ28: SUPOC-102277 | AR28: MIR LOT2 et MIR LOT3
A29: JMAR | B29: E-Transverse | C29: TV-PSI - Perturbations SI | D29: TV-PSI-001 - Perturbations liées au SI AGORA | E29: TV-PSI-001-AV-001 - Problèmes techniques | F29: 03 - Réalisation | G29: Développements et tests unitaires | H29: AP - Analyste Programmeur | I29: [SUPOC-102277] / PF {Sirugue lot 1} | J29: 0.75 | U29: 0.25 | AD29: 0.5 | AP29: PV | AQ29: SUPOC-102277 | AR29: Sirugue lot 1
A30: JMAR | B30: E-Transverse | C30: TV-PSI - Perturbations SI | D30: TV-PSI-001 - Perturbations liées au SI AGORA | E30: TV-PSI-001-AV-001 - Problèmes techniques | F30: 09 - N/A | G30: N/A | H30: AP - Analyste Programmeur | I30: [SUPOC-105792] / PF {MIR} | J30: 0.2 | AI30: 0.2 | AP30: PV | AQ30: SUPOC-105792 | AR30: MIR
A31: LDEP | B31: E-Transverse | C31: TV-PSI - Perturbations SI | D31: TV-PSI-001 - Perturbations liées au SI AGORA | E31: TV-PSI-001-AV-001 - Problèmes techniques | F31: 09 - N/A | G31: N/A | H31: AP - Analyste Programmeur | I31: [SUPOC-102277] (PV-PR006 - {CD-RCO}) | J31: 0.125 | U31: 0.125 | AP31: PV | AQ31: SUPOC-102277 | AR31: CD-RCO
A32: LPOL | B32: E-Transverse | C32: TV-PSI - Perturbations SI | D32: TV-PSI-001 - Perturbations liées au SI AGORA | E32: TV-PSI-001-AV-001 - Problèmes techniques | F32: 03 - Réalisation | G32: Développements et tests unitaires | H32: AP - Analyste Programmeur | I32: [SUPOC-102277] (project impactée {MIR LOT2 et MIR LOT3}) Tout fonctionne très lentement | J32: 0.75 | T32: 0.125 | U32: 0.375 | X32: 0.25 | AP32: PF | AQ32: SUPOC-102277 | AR32: MIR LOT2 et MIR LOT3
A33: LPOL | B33: E-Transverse | C33: TV-PSI - Perturbations SI | D33: TV-PSI-001 - Perturbations liées au SI AGORA | E33: TV-PSI-001-AV-001 - Problèmes techniques | F33: 09 - N/A | G33: N/A | H33: AP - Analyste Programmeur | I33: [SUPOC-103679] (project impactée {MIR LOT2 et MIR LOT3}. Imposible test, impossible BBDD) | J33: 0.25 | AA33: 0.25 | AP33: PF | AQ33: SUPOC-103679 | AR33: MIR LOT2 et MIR LOT3
A34: MMAR | B34: E-Transverse | C34: TV-PSI - Perturbations SI | D34: TV-PSI-001 - Perturbations liées au SI AGORA | E34: TV-PSI-001-AV-001 - Problèmes techniques | F34: 03 - Réalisation | G34: Développements et tests unitaires | H34: AP - Analyste Programmeur | I34: [SUPOC-102277] (project impactée {MIR LOT2 et MIR LOT3}) Tout fonctionne très lentement | J34: 0.3 | T34: 0.1 | U34: 0.1 | X34: 0.1 | AP34: PF | AQ34: SUPOC-102277 | AR34: MIR LOT2 et MIR LOT3
A35: MMAR | B35: E-Transverse | C35: TV-PSI - Perturbations SI | D35: TV-PSI-001 - Perturbations liées au SI AGORA | E35: TV-PSI-001-AV-001 - Problèmes techniques | F35: 03 - Réalisation | G35: Développements et tests unitaires | H35: AP - Analyste Programmeur | I35: [SUPOC-103679] (project impactée {MIR LOT2 et MIR LOT3}) (imposible test, impossible BBDD) | J35: 0.1 | AA35: 0.1 | AP35: PF | AQ35: SUPOC-103679 | AR35: MIR LOT2 et MIR LOT3
A36: MPAR | B36: E-Transverse | C36: TV-PSI - Perturbations SI | D36: TV-PSI-001 - Perturbations liées au SI AGORA | E36: TV-PSI-001-AV-001 - Problèmes techniques | F36: 09 - N/A | G36: N/A | H36: AP - Analyste Programmeur | I36: [SUPOC-102277] - PV-PR004-001 - Campagne {GIP Lot2} Metadonnées - Solution: une réinstallation d'éclipse - | J36: 0.37 | U36: 0.37 | AP36: PV | AQ36: SUPOC-102277 | AR36: GIP Lot2
A37: MPER | B37: E-Transverse | C37: TV-PSI - Perturbations SI | D37: TV-PSI-001 - Perturbations liées au SI AGORA | E37: TV-PSI-001-AV-001 - Problèmes techniques | F37: 03 - Réalisation | G37: Développements et tests unitaires | H37: AP - Analyste Programmeur | I37: Création et test Module {MIR lot.3}.[SUPOC-102277] | J37: 0.125 | X37: 0.125 | AP37: PF | AQ37: SUPOC-102277 | AR37: MIR lot.3
A38: MPER | B38: E-Transverse | C38: TV-PSI - Perturbations SI | D38: TV-PSI-001 - Perturbations liées au SI AGORA | E38: TV-PSI-001-AV-001 - Problèmes techniques | F38: 03 - Réalisation | G38: Développements et tests unitaires | H38: AP - Analyste Programmeur | I38: Test Module {MIR lot.3}.[SUPOC-103679] | J38: 0.25 | AA38: 0.25 | AP38: PF | AQ38: SUPOC-103679 | AR38: MIR lot.3
A39: MPER | B39: E-Transverse | C39: TV-PSI - Perturbations SI | D39: TV-PSI-001 - Perturbations liées au SI AGORA | E39: TV-PSI-001-AV-001 - Problèmes techniques | F39: 03 - Réalisation | G39: Développements et tests unitaires | H39: AP - Analyste Programmeur | I39: Test Module {MIR lot.3}.[SUPOC-104234] | J39: 0.1 | AB39: 0.1 | AP39: PF | AQ39: SUPOC-104234 | AR39: MIR lot.3
A40: MPER | B40: E-Transverse | C40: TV-PSI - Perturbations SI | D40: TV-PSI-001 - Perturbations liées au SI AGORA | E40: TV-PSI-001-AV-001 - Problèmes techniques | F40: 03 - Réalisation | G40: Développements et tests unitaires | H40: AP - Analyste Programmeur | I40: Test Module {MIR lot.3}.[SUPOC-105792] | J40: 0.25 | AI40: 0.25 | AP40: PF | AQ40: SUPOC-105792 | AR40: MIR lot.3
A41: PDUR | B41: E-Transverse | C41: TV-PSI - Perturbations SI | D41: TV-PSI-001 - Perturbations liées au SI AGORA | E41: TV-PSI-001-AV-001 - Problèmes techniques | F41: 09 - N/A | G41: N/A | H41: AP - Analyste Programmeur | I41: Lenteurs CITRIX [SUPOC-102277] sur résolution {DEFAUTPF-4264} | J41: 0.375 | T41: 0.125 | U41: 0.25 | AP41: PF | AQ41: SUPOC-102277 | AR41: DEFAUTPF-4264
A42: PDUR | B42: E-Transverse | C42: TV-PSI - Perturbations SI | D42: TV-PSI-001 - Perturbations liées au SI AGORA | E42: TV-PSI-001-AV-001 - Problèmes techniques | F42: 09 - N/A | G42: N/A | H42: AP - Analyste Programmeur | I42: [SUPOC-105792] : indisponibilité base E77 : pas de test TP ni TNR (pas de base perso) pour {DBI lot 4} | J42: 0.75 | AI42: 0.75 | AP42: PF | AQ42: SUPOC-105792 | AR42: DBI lot 4
A43: RGAR | B43: E-Transverse | C43: TV-PSI - Perturbations SI | D43: TV-PSI-001 - Perturbations liées au SI AGORA | E43: TV-PSI-001-AV-001 - Problèmes techniques | F43: 09 - N/A | G43: N/A | H43: AP - Analyste Programmeur | I43: [SUPOC-102277] - {LURA} | J43: 0.4 | U43: 0.4 | AP43: RGCU | AQ43: SUPOC-102277 | AR43: LURA
A44: RPAL | B44: E-Transverse | C44: TV-PSI - Perturbations SI | D44: TV-PSI-001 - Perturbations liées au SI AGORA | E44: TV-PSI-001-AV-001 - Problèmes techniques | F44: 04 - Tests d'intégration | G44: Exécution des tests | H44: AP - Analyste Programmeur | I44: [SUPOC-102277] {Sirugue Lot 1} | J44: 0.33 | U44: 0.13 | AI44: 0.2 | AP44: Autre | AQ44: SUPOC-102277 | AR44: Sirugue Lot 1
A45: RPER | B45: E-Transverse | C45: TV-PSI - Perturbations SI | D45: TV-PSI-001 - Perturbations liées au SI AGORA | E45: TV-PSI-001-AV-001 - Problèmes techniques | F45: 09 - N/A | G45: N/A | H45: AP - Analyste Programmeur | I45: [SUPOC-102277] {projet exemple} - Solution: une réinstallation d'éclipse (Movalnsa) | J45: 0.37 | U45: 0.37 | AP45: PV | AQ45: SUPOC-102277 | AR45: projet exemple
A46: SBEN | B46: E-Transverse | C46: TV-PSI - Perturbations SI | D46: TV-PSI-001 - Perturbations liées au SI AGORA | E46: TV-PSI-001-AV-001 - Problèmes techniques | F46: 09 - N/A | G46: N/A | H46: AP - Analyste Programmeur | I46: [SUPOC-103679] - TU {SIRUGUE} | J46: 3 | T46: 0.25 | U46: 0.25 | X46: 0.5 | AA46: 0.75 | AB46: 1 | AC46: 0.25 | AP46: PF | AQ46: SUPOC-103679 | AR46: SIRUGUE
A47: SBEN | B47: E-Transverse | C47: TV-PSI - Perturbations SI | D47: TV-PSI-001 - Perturbations liées au SI AGORA | E47: TV-PSI-001-AV-001 - Problèmes techniques | F47: 09 - N/A | G47: N/A | H47: AP - Analyste Programmeur | I47: [SUPOC-105792] - TI {SIRUGUE} | J47: 0.75 | AI47: 0.75 | AP47: PF | AQ47: SUPOC-105792 | AR47: SIRUGUE
A48: SDET | B48: E-Transverse | C48: TV-PSI - Perturbations SI | D48: TV-PSI-001 - Perturbations liées au SI AGORA | E48: TV-PSI-001-AV-001 - Problèmes techniques | F48: 09 - N/A | G48: N/A | H48: AP - Analyste Programmeur | I48: [SUPOC-103679] | J48: 0.75 | AB48: 0.75 | AP48: PV | AQ48: SUPOC-103679
A49: SDET | B49: E-Transverse | C49: TV-PSI - Perturbations SI | D49: TV-PSI-001 - Perturbations liées au SI AGORA | E49: TV-PSI-001-AV-001 - Problèmes techniques | F49: 09 - N/A | G49: N/A | H49: AP - Analyste Programmeur | I49: [SUPOC-105792] + pb eclipse | J49: 0.5 | AI49: 0.5 | AP49: PV | AQ49: SUPOC-105792
A50: SLEC | B50: E-Transverse | C50: TV-PSI - Perturbations SI | D50: TV-PSI-001 - Perturbations liées au SI AGORA | E50: TV-PSI-001-AV-001 - Problèmes techniques | F50: 03 - Réalisation | G50: Développements et tests unitaires | H50: AP - Analyste Programmeur | I50: [SUPOC-102277] (projet {SIRUGUE}) | J50: 0.25 | T50: 0.25 | AP50: PF | AQ50: SUPOC-102277 | AR50: SIRUGUE
A51: SLEC | B51: E-Transverse | C51: TV-PSI - Perturbations SI | D51: TV-PSI-001 - Perturbations liées au SI AGORA | E51: TV-PSI-001-AV-001 - Problèmes techniques | F51: 09 - N/A | G51: N/A | H51: AP - Analyste Programmeur | I51: [SUPOC-103679] (projet {SIRUGUE} | J51: 0.75 | AB51: 0.75 | AP51: PF | AQ51: SUPOC-103679 | AR51: SIRUGUE
A52: TBON | B52: E-Transverse | C52: TV-PSI - Perturbations SI | D52: TV-PSI-001 - Perturbations liées au SI AGORA | E52: TV-PSI-001-AV-001 - Problèmes techniques | F52: 03 - Réalisation | G52: Développements et tests unitaires | H52: AP - Analyste Programmeur | I52: probleme de connexion sur base M70, M46 une demande a été faite à : agora_celluleassistancepostedetravail.blf@agora.msa.fr | J52: 2 | W52: 0.5 | AA52: 0.5 | AE52: 1 | AP52: EMA | AQ52: p
A53: TBON | B53: E-Transverse | C53: TV-PSI - Perturbations SI | D53: TV-PSI-001 - Perturbations liées au SI AGORA | E53: TV-PSI-001-AV-001 - Problèmes techniques | F53: 03 - Réalisation | G53: Développements et tests unitaires | H53: AP - Analyste Programmeur | I53: problème d'utilisation de NS_DESIGN nottament d'azccès aux fenêtres; supoc d'ouvert à ce sujet SUPOC-105257 | J53: 2 | X53: 1 | AH53: 1 | AP53: EMA | AQ53: p
A54: VVAL | B54: E-Transverse | C54: TV-PSI - Perturbations SI | D54: TV-PSI-001 - Perturbations liées au SI AGORA | E54: TV-PSI-001-AV-001 - Problèmes techniques | F54: 09 - N/A | G54: N/A | H54: AP - Analyste Programmeur | I54: RGCU: [SUPOC-102277] {projet exemple} - Solution: une réinstallation d'éclipse. | J54: 0.3 | W54: 0.3 | AP54: PV | AQ54: SUPOC-102277 | AR54: projet exemple
A55: YPER | B55: E-Transverse | C55: TV-PSI - Perturbations SI | D55: TV-PSI-001 - Perturbations liées au SI AGORA | E55: TV-PSI-001-AV-001 - Problèmes techniques | F55: 03 - Réalisation | G55: Développements et tests unitaires | H55: AP - Analyste Programmeur | I55: [SUPOC-102277] - {SIRUGUE Lot1} (Test unitaires) | J55: 0.76 | T55: 0.13 | U55: 0.38 | X55: 0.25 | AP55: PF | AQ55: SUPOC-102277 | AR55: SIRUGUE Lot1
A56: YPER | B56: E-Transverse | C56: TV-PSI - Perturbations SI | D56: TV-PSI-001 - Perturbations liées au SI AGORA | E56: TV-PSI-001-AV-001 - Problèmes techniques | F56: 03 - Réalisation | G56: Développements et tests unitaires | H56: AP - Analyste Programmeur | I56: [SUPOC-103679] - {SIRUGUE Lot1} (Test unitaires) | J56: 1.89 | AA56: 0.88 | AB56: 0.88 | AC56: 0.13 | AP56: PF | AQ56: SUPOC-103679 | AR56: SIRUGUE Lot1
A57: ZBEN | B57: E-Transverse | C57: TV-PSI - Perturbations SI | D57: TV-PSI-001 - Perturbations liées au SI AGORA | E57: TV-PSI-001-AV-001 - Problèmes techniques | F57: 01 - Gestion de la demande | G57: Analyse d'impacts | H57: A - Analyste | I57: [SUPOC-102277] lenteur - impact sur projet {LURA} H3911-H3912 | J57: 0.5 | T57: 0.25 | U57: 0.25 | AP57: PV | AQ57: SUPOC-102277 | AR57: LURA
A58: ZBEN | B58: E-Transverse | C58: TV-PSI - Perturbations SI | D58: TV-PSI-001 - Perturbations liées au SI AGORA | E58: TV-PSI-001-AV-001 - Problèmes techniques | F58: 04 - Tests d'intégration | G58: Exécution des tests | H58: A - Analyste | I58: [SUPOC-104234] lenteur Glink - impact sur projet {LURA} H3911-H3912 | J58: 0.6 | AB58: 0.35 | AD58: 0.25 | AP58: PV | AQ58: SUPOC-104234 | AR58: LURA
A59: CRA_ | B59: E-Transverse | C59: TV-PSI - Perturbations SI | D59: TV-PSI-001 - Perturbations liées au SI AGORA | E59: TV-PSI-001-AV-001 - Problèmes techniques | F59: 09 - N/A | G59: N/A | H59: AP - Analyste Programmeur | I59: [SUPOC-102277] - {LURA} (hrdgesdem, hrdecgrepdem) | J59: 0.4 | U59: 0.4 | AP59: PF | AQ59: SUPOC-102277 | AR59: LURA
A60: CRA_ | B60: E-Transverse | C60: TV-PSI - Perturbations SI | D60: TV-PSI-001 - Perturbations liées au SI AGORA | E60: TV-PSI-001-AV-001 - Problèmes techniques | F60: 09 - N/A | G60: N/A | H60: AP - Analyste Programmeur | I60: [SUPOC-105792] / PF-PR001 - {MIR} | J60: 0.25 | AI60: 0.25 | AP60: PF | AQ60: SUPOC-105792 | AR60: MIR
A61: CRA_ | B61: E-Transverse | C61: TV-PSI - Perturbations SI | D61: TV-PSI-001 - Perturbations liées au SI AGORA | E61: TV-PSI-001-AV-001 - Problèmes techniques | F61: 03 - Réalisation | G61: Développements et tests unitaires | H61: AP - Analyste Programmeur | I61: [SUPOC-102277] / PF {Sirugue lot 1} | J61: 0.75 | U61: 0.25 | AD61: 0.5 | AP61: PF | AQ61: SUPOC-102277 | AR61: Sirugue lot 1
A62: CRA_ | B62: E-Transverse | C62: TV-PSI - Perturbations SI | D62: TV-PSI-001 - Perturbations liées au SI AGORA | E62: TV-PSI-001-AV-001 - Problèmes techniques | F62: 09 - N/A | G62: N/A | H62: AP - Analyste Programmeur | I62: [SUPOC-105792] / PF {MIR} | J62: 0.2 | AI62: 0.2 | AP62: PF | AQ62: SUPOC-105792 | AR62: MIR
A63: CRA_ | B63: E-Transverse | C63: TV-PSI - Perturbations SI | D63: TV-PSI-001 - Perturbations liées au SI AGORA | E63: TV-PSI-001-AV-001 - Problèmes techniques | F63: 09 - N/A | G63: N/A | H63: AP - Analyste Programmeur | I63: [SUPOC-102277] (PV-PR006 - {CD-RCO} | J63: 0.125 | U63: 0.125 | AP63: PF | AQ63: SUPOC-102277 | AR63: CD-RCO
A64: CRA_ | B64: E-Transverse | C64: TV-PSI - Perturbations SI | D64: TV-PSI-001 - Perturbations liées au SI AGORA | E64: TV-PSI-001-AV-001 - Problèmes techniques | F64: 03 - Réalisation | G64: Développements et tests unitaires | H64: AP - Analyste Programmeur | I64: Création et test Module {MIR lot.3}.[SUPOC-102277] | J64: 0.125 | X64: 0.125 | AP64: PF | AQ64: SUPOC-102277 | AR64: MIR lot.3
A65: CRA_ | B65: E-Transverse | C65: TV-PSI - Perturbations SI | D65: TV-PSI-001 - Perturbations liées au SI AGORA | E65: TV-PSI-001-AV-001 - Problèmes techniques | F65: 03 - Réalisation | G65: Développements et tests unitaires | H65: AP - Analyste Programmeur | I65: Test Module {MIR lot.3}.[SUPOC-103679] | J65: 0.25 | AA65: 0.25 | AP65: PF | AQ65: SUPOC-103679 | AR65: MIR lot.3
A66: CRA_ | B66: E-Transverse | C66: TV-PSI - Perturbations SI | D66: TV-PSI-001 - Perturbations liées au SI AGORA | E66: TV-PSI-001-AV-001 - Problèmes techniques | F66: 03 - Réalisation | G66: Développements et tests unitaires | H66: AP - Analyste Programmeur | I66: Test Module {MIR lot.3}.[SUPOC-104234] | J66: 0.1 | AB66: 0.1 | AP66: PF | AQ66: SUPOC-104234 | AR66: MIR lot.3
A67: CRA_ | B67: E-Transverse | C67: TV-PSI - Perturbations SI | D67: TV-PSI-001 - Perturbations liées au SI AGORA | E67: TV-PSI-001-AV-001 - Problèmes techniques | F67: 03 - Réalisation | G67: Développements et tests unitaires | H67: AP - Analyste Programmeur | I67: Test Module {MIR lot.3}.[SUPOC-105792] | J67: 0.25 | AI67: 0.25 | AP67: Autre | AQ67: SUPOC-105792 | AR67: MIR lot.3
A68: CRA_ | B68: E-Transverse | C68: TV-PSI - Perturbations SI | D68: TV-PSI-001 - Perturbations liées au SI AGORA | E68: TV-PSI-001-AV-001 - Problèmes techniques | F68: 09 - N/A | G68: N/A | H68: AP - Analyste Programmeur | I68: [SUPOC-102277] - {LURA} | J68: 0.4 | U68: 0.4 | AP68: Autre | AQ68: SUPOC-102277 | AR68: LURA
A69: CRA_ | B69: E-Transverse | C69: TV-PSI - Perturbations SI | D69: TV-PSI-001 - Perturbations liées au SI AGORA | E69: TV-PSI-001-AV-001 - Problèmes techniques | F69: 09 - N/A | G69: N/A | H69: AP - Analyste Programmeur | I69: [SUPOC-102277] {projet exemple}- Solution: une réinstallation d'éclipse (Movalnsa) | J69: 0.37 | U69: 0.37 | AP69: Autre | AQ69: SUPOC-102277 | AR69: projet exemple

Sheet Octobre
E1: Nb profils | F1: Nb jours impactés
B2: TOTAUX GENERAUX | E2: =SUM(E39,E56,E69,E80,E86,E91) -> 48 | F2: =SUM(F39,F56,F69,F80,F86,F91) -> 29.355
A6: SUPOC-102277
A7: DOMAINE | B7: PROJET | C7: ROLE | D7: Id | E7: Nb profils | F7: Nb jours impactés | G7: Journées concernées
A8: EMA-CMCD | C8: Analyste | D8: CGAL | E8: 1 | F8: 0 | G8: 2016-10-11
A9: EMA-CMCD | C9: Analyste | D9: FFIA | E9: 1 | F9: 0.25 | G9: 2016-10-11
A10: SOUS TOTAL | E10: =SUM(E8:E9) -> 2 | F10: =SUM(F8:F9) -> 0.25
A11: PF | B11: JCSSUDA-450 | C11: Analyste | D11: CMOR | E11: 1 | F11: 2.25 | G11: 2016-10-11 | H11: 2016-10-14 | I11: 2016-10-17 | J11: 2016-10-18 | K11: 2016-10-19
A12: PF | B12: TAUX DEMAT | C12: Analyste | D12: DLEC | E12: 1 | F12: 0.75 | G12: 2016-10-11 | H12: 2016-10-12
A13: PF | B13: JCSSUDA-566 | C13: Analyste | D13: GSCH | E13: 1 | F13: 0.25 | G13: 2016-10-10
A14: PF | B14: TANDEM | C14: Analyste | D14: GSEN | E14: 1 | F14: 0.75 | G14: 2016-10-10 | H14: 2016-10-11
A15: SOUS TOTAL | E15: =SUM(E11:E14) -> 4 | F15: =SUM(F11:F14) -> 4
A16: PF | B16: MIR LOT 2 | C16: Analyste Programmeur | D16: AMER | E16: 1 | F16: 0.76 | G16: 2016-10-10 | H16: 2016-10-11 | I16: 2014-10-14
A17: PF | B17: MIR LOT 2 | C17: Analyste Programmeur | D17: HMAR | E17: 1 | F17: 0.13 | G17: 2016-10-14
A18: PF | B18: MIR LOT 2;MIR LOT 3 | C18: Analyste Programmeur | D18: JDUQ | E18: 1 | F18: 0.375 | G18: 2016-10-11 | H18: 2016-10-13 | I18: 2016-10-17
A19: PF | B19: SIRUGUE LOT 1 | C19: Analyste Programmeur | D19: JMAR | E19: 1 | F19: 0.75 | G19: 2016-10-11 | H19: 2016-10-20
A20: PF | B20: MIR LOT 2;MIR LOT 3 | C20: Analyste Programmeur | D20: LPOL | E20: 1 | F20: 0.75 | G20: 2016-10-10 | H20: 2016-10-11 | I20: 2014-10-14
A21: PF | B21: MIR LOT 2;MIR LOT 3 | C21: Analyste Programmeur | D21: MMAR | E21: 1 | F21: 0.3 | G21: 2016-10-10 | H21: 2016-10-11 | I21: 2014-10-14
A22: PF | B22: MIR LOT 3 | C22: Analyste Programmeur | D22: MPER | E22: 1 | F22: 0.125 | G22: 2016-10-14
A23: PF | B23: DEFAUTPF-4264 | C23: Analyste Programmeur | D23: PDUR | E23: 1 | F23: 0.375 | G23: 2016-10-10 | H23: 2016-10-11
A24: PF | B24: SIRUGUE LOT 1 | C24: Analyste Programmeur | D24: RPAL | E24: 1 | F24: 0.33 | G24: 2016-10-11 | H24: 2016-10-25
A25: PF | B25: SIRUGUE LOT 1 | C25: Analyste Programmeur | D25: SLEC | E25: 1 | F25: 0.25 | G25: 2016-10-10
A26: PF | B26: SIRUGUE LOT 1 | C26: Analyste Programmeur | D26: YPER | E26: 1 | F26: 0.76 | G26: 2016-10-10 | H26: 2016-10-11 | I26: 2014-10-14
A27: SOUS TOTAL | E27: =SUM(E16:E26) -> 11 | F27: =SUM(F16:F26) -> 4.905
A28: PV | B28: LURA | C28: Analyste | D28: ZBEN | E28: 1 | F28: 0.5 | G28: 2016-10-10 | H28: 2016-10-11
A29: SOUS TOTAL | E29: =SUM(E28) -> 1 | F29: =SUM(F28) -> 0.5
A30: PV | B30: CDRCO LOT BALAI | C30: Analyste Programmeur | D30: CPES | E30: 1 | F30: 0.75 | G30: 2016-10-10 | H30: 2016-10-11
A31: PV | B31: LURA AVPF LOT 2 | C31: Analyste Programmeur | D31: ECAL | E31: 1 | F31: 0.75 | G31: 2016-10-11 | H31: 2016-10-14 | I31: 2016-10-21
A32: PV | C32: Analyste Programmeur | D32: FFRA | E32: 1 | F32: 0.4 | G32: 2016-10-11
A33: PV | B33: CDRCO | C33: Analyste Programmeur | D33: LDEP | E33: 1 | F33: 0.125 | G33: 2016-10-11
A34: PV | C34: Analyste Programmeur | D34: MPAR | E34: 1 | F34: 0.37 | G34: 2016-10-11
A35: PV | B35: LURA | C35: Analyste Programmeur | D35: RGAR | E35: 1 | F35: 0.4 | G35: 2016-10-11
A36: PV | C36: Analyste Programmeur | D36: RPER | E36: 1 | F36: 0.37 | G36: 2016-10-11
A37: PV | C37: Analyste Programmeur | D37: VVAL | E37: 1 | F37: 0.3 | G37: 2016-10-13
A38: SOUS TOTAL | E38: =SUM(E30:E37) -> 8 | F38: =SUM(F30:F37) -> 3.465
A39: TOTAL GENERAL | E39: =SUM(E10,E15,E27,E29,E38) -> 26 | F39: =SUM(F10,F15,F27,F29,F38) -> 13.12
A42: SUPOC-103679
A43: DOMAINE | B43: PROJET | C43: ROLE | D43: Id | E43: Nb profils | F43: Nb jours impactés | G43: Journées concernées
A44: PF | B44: TAUX DEMAT | C44: Analyste | D44: DLEC | E44: 1 | F44: 1 | G44: 2016-10-14 | H44: 2016-10-17
A45: PF | B45: TANDEM | C45: Analyste | D45: GSEN | E45: 1 | F45: 1 | G45: 2016-10-14 | H45: 2016-10-17
A46: SOUS TOTAL | E46: =SUM(E44:E45) -> 2 | F46: =SUM(F44:F45) -> 2
A47: PF | B47: MIR LOT 2 | C47: Analyste Programmeur | D47: AMER | E47: 1 | F47: 0.13 | G47: 2016-10-17
A48: PF | B48: MIR LOT 2;MIR LOT 3 | C48: Analyste Programmeur | D48: LPOL | E48: 1 | F48: 0.25 | G48: 2016-10-17
A49: PF | B49: MIR LOT 2;MIR LOT 3 | C49: Analyste Programmeur | D49: MMAR | E49: 1 | F49: 0.1 | G49: 2016-10-17
A50: PF | B50: MIR LOT 3 | C50: Analyste Programmeur | D50: MPER | E50: 1 | F50: 0.25 | G50: 2016-10-17
A51: PF | B51: SIRUGUE LOT 1 | C51: Analyste Programmeur | D51: SBEN | E51: 1 | F51: 3 | G51: 2016-10-10 | H51: 2016-10-11 | I51: 2014-10-14 | J51: 2016-10-17 | K51: 2016-10-18 | L51: 2016-10-19
A52: PF | B52: LOGEMENT ISF | C52: Analyste Programmeur | D52: SDET | E52: 1 | F52: 0.75 | G52: 2016-10-18
A53: PF | B53: SIRUGUE LOT 1 | C53: Analyste Programmeur | D53: SLEC | E53: 1 | F53: 0.75 | G53: 2016-10-18
A54: PF | B54: SIRUGUE LOT 1 | C54: Analyste Programmeur | D54: YPER | E54: 1 | F54: 1.89 | G54: 2016-10-17 | H54: 2016-10-18 | I54: 2016-10-19
A55: SOUS TOTAL | E55: =SUM(E47:E54) -> 8 | F55: =SUM(F47:F54) -> 7.12
A56: TOTAL GENERAL | E56: =SUM(E46,E55) -> 10 | F56: =SUM(F46,F55) -> 9.12
A59: SUPOC-105792
A60: DOMAINE | B60: PROJET | C60: ROLE | D60: Id | E60: Nb profils | F60: Nb jours impactés | G60: Journées concernées
A61: PF | B61: MIR LOT 3 | C61: Analyste Programmeur | D61: AMER | E61: 1 | F61: 0.59 | G61: 2016-10-25 | H61: 2016-10-26
A62: PF | C62: Analyste Programmeur | D62: ISOR | E62: 1 | F62: 0.25 | G62: 2016-10-25
A63: PF | B63: MIR | C63: Analyste Programmeur | D63: JMAR | E63: 1 | F63: 0.2 | G63: 2016-10-25
A64: PF | B64: MIR LOT 3 | C64: Analyste Programmeur | D64: MPER | E64: 1 | F64: 0.25 | G64: 2016-10-25
A65: PF | B65: DBI LOT 4 | C65: Analyste Programmeur | D65: PDUR | E65: 1 | F65: 0.75 | G65: 2016-10-25
A66: PF | B66: SIRUGUE LOT 1 | C66: Analyste Programmeur | D66: SBEN | E66: 1 | F66: 0.75 | G66: 2016-10-25
A67: PF | B67: LOGEMENT ISF | C67: Analyste Programmeur | D67: SDET | E67: 1 | F67: 0.5 | G67: 2016-10-25
A68: SOUS TOTAL | E68: =SUM(E61:E67) -> 7 | F68: =SUM(F61:F67) -> 3.29
A69: TOTAL GENERAL | E69: =E68 -> 7 | F69: =F68 -> 3.29
A72: SUPOC-104234
A73: DOMAINE | B73: PROJET | C73: ROLE | D73: Id | E73: Nb profils | F73: Nb jours impactés | G73: Journées concernées
A74: PF | B74: MIR LOT 3 | C74: Analyste Programmeur | D74: MPER | E74: 1 | F74: 0.1 | G74: 2016-10-18
A75: SOUS TOTAL | E75: =SUM(E74) -> 1 | F75: =SUM(F74) -> 0.1
A76: PV | B76: LURA | C76: Analyste Programmeur | D76: CPES | E76: 1 | F76: 0.5 | G76: 2016-10-18 | H76: 2016-10-20
A77: SOUS TOTAL | E77: =SUM(E76) -> 1 | F77: =SUM(F76) -> 0.5
A78: PV | B78: LURA | C78: Analyste | D78: ZBEN | E78: 1 | F78: 0.6 | G78: 2016-10-18 | H78: 2016-10-20
A79: SOUS TOTAL | E79: =SUM(E78) -> 1 | F79: =SUM(F78) -> 0.6
A80: TOTAL GENERAL | E80: =SUM(E75,E77,E79) -> 3 | F80: =SUM(F75,F77,F79) -> 1.2
A83: SUPOC-1O1547
A84: DOMAINE | B84: PROJET | C84: ROLE | D84: Id | E84: Nb profils | F84: Nb jours impactés | G84: Journées concernées
A85: EMA-CMCD | C85: Analyste | D85: FFIA | E85: 1 | F85: 0.625 | G85: 2016-10-05 | H85: 2016-10-07
A86: TOTAL GENERAL | E86: =E85 -> 1 | F86: =F85 -> 0.625
A88: SUPOC-105257
A89: DOMAINE | B89: PROJET | C89: ROLE | D89: Id | E89: Nb profils | F89: Nb jours impactés | G89: Journées concernées
A90: EMA-CMCD | C90: Analyste Programmeur | D90: TBON | E90: 1 | F90: 2 | G90: 2014-10-14 | H90: 2016-10-24
A91: TOTAL GENERAL | E91: =E90 -> 1 | F91: =F90 -> 2
A95: Synthèse par Application | E95: Nb profils | F95: Nb jours impactés
B96: PV | E96: =SUMIF(A7:D91,B96,E7:E91) -> 11 | F96: =SUMIF(A7:D91,B96,F7:F91) -> 5.065
B97: PF | E97: =SUMIF(A7:D91,B97,E7:E91) -> 33 | F97: =SUMIF(A7:D91,B97,F7:F91) -> 21.415
B98: EMA-CMCD | E98: =SUMIF(A7:D91,B98,E7:E91) -> 4 | F98: =SUMIF(A7:D91,B98,F7:F91) -> 2.875
B99: RGCU | E99: =SUMIF(A7:D91,B99,E7:E91) -> 0 | F99: =SUMIF(A7:D91,B99,F7:F91) -> 0
E100: =SUM(E96:E99) -> 48 | F100: =SUM(F96:F99) -> 29.355

Sheet Feuil2

Sheet Feuil3
